fUSD/lending_fUSD_20241203
["ID","MTS","AMOUNT","RATE_DAILY","PERIOD"]
[344012570,1733199465017,1000.2499665,0.00023,120]
[344012573,1733199956426,23487.37150596,6.94e-05,2]
[344012574,1733199988685,250.0,6.945e-05,2]
[344012577,1733200126853,700.0,0.00023,120]
[344012614,1733200231546,-377.14,7.165e-05,2]
[344012615,1733200231556,-150.0,7.48e-05,2]
[344012616,1733200231566,-3806.72940699,7.5e-05,2]
[344012617,1733200231579,-1503.22425527,7.5e-05,2]
[344012618,1733200231766,-318.92187092,7.5e-05,2]
[344012625,1733200237526,-1036.68951774,7.5e-05,2]
[344012790,1733200242445,-18296.01976286,7.5e-05,2]
[344012805,1733200242732,-9197.67373203,7.5e-05,2]
[344012806,1733200242743,-3901.97145419,7.5e-05,2]
[344012807,1733200242753,-729.675,7.546e-05,2]
[344012808,1733200242762,-150.0,7.599e-05,2]
[344012809,1733200242771,-150.0,7.6e-05,2]
[344012810,1733200242781,-363.99,7.6e-05,2]
[344012811,1733200242790,-363.99,7.6e-05,2]
[344012812,1733200242799,-451.23,7.6e-05,2]
[344012813,1733200242809,-363.99,7.6e-05,2]
[344012814,1733200242818,-363.99,7.6e-05,2]
[344012815,1733200242828,-404.0447,7.6e-05,2]
[344012817,1733200242837,-150.0,7.688e-05,2]
[344012818,1733200242846,-670.4382182,7.689e-05,2]
[344012819,1733200242855,-366.1493905,7.689e-05,2]
[344012821,1733200242865,-588.18676255,7.689e-05,2]
[344012823,1733200242874,-339.18,7.69e-05,2]
[344012825,1733200242884,-722.26,7.69e-05,2]
[344012827,1733200242893,-150.0,7.69e-05,2]
[344012829,1733200242903,-31667.39249004,7.69e-05,2]
[344012831,1733200242912,-648.9743268,7.695e-05,2]
[344012833,1733200242921,-627.5104353,7.695e-05,2]
[344012835,1733200242930,-606.0465439,7.695e-05,2]
[344012837,1733200242939,-150.0,7.698e-05,2]
[344012838,1733200242949,-150.0,7.698e-05,2]
[344012840,1733200242959,-150.0,7.698e-05,2]
[344012843,1733200242968,-150.0,7.698e-05,2]
[344012845,1733200242978,-150.0,7.698e-05,2]
[344012847,1733200242987,-150.0,7.698e-05,2]
[344012849,1733200242997,-150.0,7.698e-05,2]
[344012851,1733200243007,-150.0,7.698e-05,2]
[344012852,1733200243016,-150.0,7.698e-05,2]
[344012855,1733200243025,-150.0,7.698e-05,2]
[344012857,1733200243035,-150.0,7.698e-05,2]
[344012859,1733200243044,-150.0,7.698e-05,2]
[344012860,1733200243054,-695.17,7.699e-05,2]
[344012862,1733200243063,-1739.8,7.699e-05,2]
[344012864,1733200243073,-20426.07825336,7.7e-05,2]
[344012867,1733200243082,-1893.0,7.7e-05,2]
[344012868,1733200243091,-563.0,7.7e-05,2]
[344012870,1733200243100,-1252.0,7.7e-05,2]
[344012873,1733200243110,-3760.0,7.7e-05,2]
[344012875,1733200243120,-816.0,7.7e-05,2]
[344012877,1733200243129,-3528.0,7.7e-05,2]
[344012879,1733200243138,-975.0,7.7e-05,2]
[344012881,1733200243148,-535.0,7.7e-05,2]
[344012883,1733200243157,-1097.0,7.7e-05,2]
[344012885,1733200243167,-151.0,7.7e-05,2]
[344012886,1733200243176,-566.0,7.7e-05,2]
[344012889,1733200243186,-5962.0,7.7e-05,2]
[344012890,1733200243195,-150.0,7.7e-05,2]
[344012892,1733200243206,-1261.0,7.7e-05,2]
[344012895,1733200243216,-13709.0,7.7e-05,2]
[344012896,1733200243225,-1183668.01487704,7.7e-05,2]
[344012900,1733200243250,-7148.80755755,7.7e-05,2]
[344012906,1733200243295,-11458.3971403,7.7e-05,2]
[344012910,1733200243322,-5301.38603347,7.7e-05,2]
[344012912,1733200243333,-5897.58561607,7.7e-05,2]
[344013148,1733200245790,-1166.0,7.7e-05,2]
[344013150,1733200245802,-6248.82364554,7.7e-05,2]
[344013959,1733201027342,44955.0,7.1e-05,2]
[344013960,1733201144313,223.1,0.00023,120]
[344013961,1733201196293,250.0,7.148e-05,2]
[344013967,1733201431781,-154.48,7.342e-05,2]
[344013968,1733201431792,-747.287,7.546e-05,2]
[344013969,1733201431801,-150.0,7.579e-05,2]
[344013970,1733201431811,-156.9800487,7.69e-05,2]
[344013971,1733201431820,-191.2835697,7.69e-05,2]
[344013972,1733201431830,-157.9492188,7.695e-05,2]
[344013973,1733201431839,-158.9183889,7.695e-05,2]
[344013974,1733201431849,-159.887559,7.695e-05,2]
[344013975,1733201431858,-300.0,7.696e-05,2]
[344013976,1733201431867,-916.72874189,7.697e-05,2]
[344013977,1733201431999,-6200.42879933,7.697e-05,2]
[344013978,1733201432011,-9067.11622797,7.697e-05,2]
[344013984,1733201438384,-1073.99063453,7.697e-05,2]
[344013985,1733201438426,-684.73926999,7.697e-05,2]
[344013986,1733201438435,-150.0,7.697e-05,2]
[344013987,1733201438445,-150.0,7.698e-05,2]
[344013988,1733201438455,-150.0,7.698e-05,2]
[344013989,1733201438467,-150.0,7.698e-05,2]
[344013990,1733201438477,-150.0,7.698e-05,2]
[344013991,1733201438487,-150.0,7.698e-05,2]
[344013992,1733201438498,-150.0,7.698e-05,2]
[344013993,1733201438508,-150.0,7.698e-05,2]
[344013994,1733201438518,-150.0,7.698e-05,2]
[344013995,1733201438528,-150.0,7.698e-05,2]
[344013996,1733201438538,-150.0,7.698e-05,2]
[344013997,1733201438550,-150.0,7.698e-05,2]
[344013998,1733201438560,-150.0,7.698e-05,2]
[344013999,1733201438570,-150.0,7.698e-05,2]
[344014000,1733201438579,-150.0,7.698e-05,2]
[344014001,1733201438589,-150.0,7.698e-05,2]
[344014002,1733201438599,-150.0,7.698e-05,2]
[344014003,1733201438608,-150.0,7.698e-05,2]
[344014004,1733201438618,-150.0,7.698e-05,2]
[344014005,1733201438627,-150.0,7.698e-05,2]
[344014006,1733201438637,-150.0,7.698e-05,2]
[344014007,1733201438646,-150.0,7.698e-05,2]
[344014008,1733201438655,-150.0,7.698e-05,2]
[344014009,1733201438665,-150.0,7.698e-05,2]
[344014010,1733201438675,-150.0,7.698e-05,2]
[344014011,1733201438684,-150.0,7.698e-05,2]
[344014012,1733201438693,-150.0,7.698e-05,2]
[344014013,1733201438702,-150.0,7.698e-05,2]
[344014014,1733201438712,-150.0,7.698e-05,2]
[344014015,1733201438726,-85149.39339164,7.698e-05,2]
[344014037,1733201439758,-10012.3729844,7.698e-05,2]
[344014038,1733201439770,-300.0,7.698e-05,2]
[344014039,1733201439862,-2603.69189403,7.698e-05,2]
[344014040,1733201439873,-3073.13814854,7.698e-05,2]
[344014041,1733201439884,-499.7582014,7.698e-05,2]
[344014042,1733201439939,-688.67454,7.698e-05,2]
[344014051,1733201442718,-7038.80700636,7.698e-05,2]
[344014052,1733201442730,-3006.34486879,7.698e-05,2]
[344014053,1733201442818,-391917.56518565,7.698e-05,2]
[344014054,1733201442830,-7112.41731991,7.698e-05,2]
[344014055,1733201442841,-37181.12191268,7.698e-05,2]
[344014056,1733201442942,-5742.08517627,7.698e-05,2]
[344014057,1733201442954,-64055.6991,7.698e-05,2]
[344014058,1733201442965,-2971.53866807,7.698e-05,2]
[344014059,1733201442986,-868.7679716,7.698e-05,2]
[344014068,1733201445606,-6503.19173614,7.698e-05,2]
[344014069,1733201445667,-522.01898272,7.698e-05,2]
[344014070,1733201445678,-3187.88732942,7.698e-05,2]
[344014071,1733201445731,-128610.951,7.698e-05,2]
[344014072,1733201445843,-24333.60554926,7.698e-05,2]
[344014073,1733201445903,-406.845005,7.698e-05,2]
[344014075,1733201848930,250.0,6.948e-05,2]
[344014086,1733202374581,1036.69,7e-05,3]
[344014089,1733202531628,250.0,6.919e-05,2]
[344014092,1733202559883,23890.0,6.979e-05,2]
[344014101,1733202631830,-355.68,7.345e-05,2]
[344014103,1733202631839,-364.58189079,7.345e-05,2]
[344014104,1733202631849,-501.0,7.479e-05,2]
[344014105,1733202631859,-2117.9763,7.6e-05,2]
[344014107,1733202631868,-2500.0,7.6e-05,2]
[344014108,1733202631877,-151.0,7.621e-05,2]
[344014110,1733202631887,-538.62250677,7.628e-05,2]
[344014111,1733202631999,-511.10596405,7.628e-05,2]
[344014112,1733202632055,-116.27152918,7.628e-05,2]
[344014113,1733202632066,-2515.8469161,7.628e-05,2]
[344014114,1733202632124,-3446.1530839,7.628e-05,2]
[344014115,1733202632133,-150.0,7.628e-05,2]
[344014116,1733202632143,-13709.0,7.628e-05,2]
[344014117,1733202632153,-728.668,7.642e-05,2]
[344014118,1733202632162,-363.99,7.67e-05,2]
[344014119,1733202632171,-300.96,7.67e-05,2]
[344014120,1733202632180,-150.0,7.67e-05,2]
[344014121,1733202632191,-300.0,7.67e-05,2]
[344014122,1733202632199,-363.99,7.67e-05,2]
[344014123,1733202632208,-302.6,7.67e-05,2]
[344014124,1733202632217,-150.0,7.67e-05,2]
[344014125,1733202632227,-303.15,7.67e-05,2]
[344014126,1733202632236,-150.0,7.67e-05,2]
[344014127,1733202632246,-435.02,7.67e-05,2]
[344014128,1733202632255,-1534.3,7.67e-05,2]
[344014129,1733202632264,-46595.0,7.671e-05,2]
[344014130,1733202632273,-579.9064751,7.673e-05,2]
[344014131,1733202632282,-161.45626376,7.673e-05,2]
[344014132,1733202632292,-500.94482123,7.673e-05,2]
[344014133,1733202632302,-159.88618387,7.673e-05,2]
[344014134,1733202632311,-500.0,7.673e-05,2]
[344014135,1733202632321,-200.0,7.679e-05,2]
[344014136,1733202632331,-869.5,7.69e-05,2]
[344014137,1733202632341,-364.03,7.69e-05,2]
[344014138,1733202632350,-434.96,7.69e-05,2]
[344014139,1733202632360,-150.0,7.69e-05,2]
[344014140,1733202632369,-434.96,7.69e-05,2]
[344014142,1733202632378,-150.0,7.69e-05,2]
[344014143,1733202632389,-322.6826283,7.693e-05,2]
[344014144,1733202632398,-200.0,7.693e-05,2]
[344014145,1733202632408,-6292.16496051,7.698e-05,2]
[344014154,1733202637927,-443.81585153,7.698e-05,2]
[344014155,1733202637986,-22323.91042253,7.698e-05,2]
[344014156,1733202637998,-3933.28328103,7.698e-05,2]
[344014157,1733202638010,-50040.00001,7.698e-05,2]
[344014158,1733202638065,-71600.0,7.698e-05,2]
[344014159,1733202638080,-697.22222227,7.698e-05,2]
[344014160,1733202638092,-562.99496502,7.698e-05,2]
[344014161,1733202639696,-4312.468795,7.698e-05,2]
[344014162,1733202639808,-24454.9587866,7.698e-05,2]
[344014163,1733202639820,-640.8,7.698e-05,2]
[344014164,1733202639866,-1084.99755771,7.698e-05,2]
[344014165,1733202639979,-598.02349627,7.698e-05,2]
[344014166,1733202639995,-580.4055,7.698e-05,2]
[344014167,1733202640008,-322.26,7.698e-05,2]
[344014168,1733202640024,-658.60098021,7.698e-05,2]
[344014169,1733202640039,-571.72170112,7.698e-05,2]
[344014170,1733202640174,-21203.98803275,7.698e-05,2]
[344014171,1733202640186,-2881.47,7.698e-05,2]
[344014180,1733202642773,-11018.06527751,7.698e-05,2]
[344014182,1733202642790,-11796.09037017,7.698e-05,2]
[344014184,1733202642802,-4288.69368676,7.698e-05,2]
[344014187,1733202642814,-3098.36916934,7.698e-05,2]
[344014189,1733202642826,-2998.85298017,7.698e-05,2]
[344014191,1733202642837,-3825.01206823,7.698e-05,2]
[344014196,1733202642873,-164917.44589119,7.698e-05,2]
[344014198,1733202642885,-2302.89636947,7.698e-05,2]
[344014205,1733202642942,-337.9608,7.698e-05,2]
[344014210,1733202643002,-8947.02384492,7.698e-05,2]
[344014216,1733202647168,-9497.16859394,7.698e-05,2]
[344014217,1733202647181,-6800.0,7.698e-05,2]
[344014218,1733202647192,-8661.885694,7.698e-05,2]
[344014219,1733202647204,-14968.70392,7.698e-05,2]
[344014220,1733202647216,-22342.0908,7.698e-05,2]
[344014221,1733202647227,-27686.29024,7.698e-05,2]
[344014222,1733202647239,-19192.6977,7.698e-05,2]
[344014223,1733202647251,-15244.10415,7.698e-05,2]
[344014224,1733202647263,-37058.4,7.698e-05,2]
[344014225,1733202647298,-3655.14876992,7.698e-05,2]
[344014226,1733202647309,-4761.530567,7.698e-05,2]
[344014227,1733202647320,-7157.2812444,7.698e-05,2]
[344014228,1733202647369,-480.26971925,7.698e-05,2]
[344014229,1733202694129,800.0,7e-05,2]
[344014230,1733202696226,1700.0,7.1e-05,2]
[344014231,1733202772082,47452.5,7.1e-05,3]
[344014234,1733203118758,289.23,6.759e-05,2]
[344014235,1733203195681,214.42,5.374e-05,2]
[344014236,1733203245908,250.0,6.704e-05,2]
[344014237,1733203280635,250.0,6.759e-05,2]
[344014239,1733203351982,200.0,6.703e-05,2]
[344014240,1733203533717,154.30478048,6.929e-05,2]
[344014241,1733203634246,800.0,7e-05,2]
[344014242,1733203636350,1600.0,7.1e-05,2]
[344014278,1733203833296,-2500.0,7.2e-05,2]
[344014279,1733203833307,-3300.0,7.3e-05,2]
[344014280,1733203833318,-4200.0,7.4e-05,2]
[344014281,1733203833329,-150.0,7.458e-05,2]
[344014282,1733203833339,-435.18,7.48e-05,2]
[344014283,1733203833350,-435.02,7.48e-05,2]
[344014284,1733203833362,-364.03,7.48e-05,2]
[344014285,1733203833372,-364.03,7.48e-05,2]
[344014286,1733203833382,-435.02,7.48e-05,2]
[344014287,1733203833392,-800.0,7.5e-05,2]
[344014288,1733203833403,-1304.38,7.5e-05,2]
[344014289,1733203833413,-939.11,7.5e-05,2]
[344014290,1733203833424,-435.18,7.5e-05,2]
[344014291,1733203833438,-150.0,7.562e-05,2]
[344014292,1733203833448,-1282.8124,7.598e-05,2]
[344014293,1733203833459,-418.7016,7.6e-05,2]
[344014294,1733203833469,-800.0,7.6e-05,2]
[344014295,1733203833479,-289.23,7.604e-05,2]
[344014296,1733203833490,-535.48212679,7.673e-05,2]
[344014297,1733203833501,-199.80206707,7.673e-05,2]
[344014298,1733203833514,-500.0,7.673e-05,2]
[344014299,1733203833525,-150.0,7.679e-05,2]
[344014300,1733203833535,-19770.53208113,7.68e-05,2]
[344014301,1733203833546,-79196.54726836,7.69e-05,2]
[344014302,1733203833556,-8749.5053341,7.69e-05,2]
[344014303,1733203833566,-272781.15712255,7.698e-05,2]
[344014304,1733203833579,-2646.09992647,7.698e-05,2]
[344014305,1733203833643,-12100.0,7.698e-05,2]
[344014306,1733203833655,-5898.65214579,7.698e-05,2]
[344014307,1733203833666,-150.0,7.698e-05,2]
[344014308,1733203833675,-150.0,7.698e-05,2]
[344014309,1733203833685,-150.0,7.698e-05,2]
[344014310,1733203833695,-150.0,7.698e-05,2]
[344014311,1733203833706,-150.0,7.698e-05,2]
[344014312,1733203833717,-150.0,7.698e-05,2]
[344014313,1733203833727,-150.0,7.698e-05,2]
[344014314,1733203833737,-150.0,7.698e-05,2]
[344014315,1733203833747,-150.0,7.698e-05,2]
[344014316,1733203833761,-150.0,7.698e-05,2]
[344014317,1733203833772,-150.0,7.698e-05,2]
[344014318,1733203833782,-150.0,7.698e-05,2]
[344014319,1733203833795,-150.0,7.698e-05,2]
[344014320,1733203833806,-150.0,7.698e-05,2]
[344014321,1733203833816,-150.0,7.698e-05,2]
[344014322,1733203833828,-150.0,7.698e-05,2]
[344014323,1733203833843,-150.0,7.698e-05,2]
[344014324,1733203833855,-150.0,7.698e-05,2]
[344014325,1733203833866,-150.0,7.698e-05,2]
[344014326,1733203833877,-150.0,7.698e-05,2]
[344014327,1733203833887,-150.0,7.698e-05,2]
[344014328,1733203833898,-150.0,7.698e-05,2]
[344014329,1733203833909,-150.0,7.698e-05,2]
[344014330,1733203833919,-150.0,7.698e-05,2]
[344014331,1733203833931,-150.0,7.698e-05,2]
[344014332,1733203833942,-150.0,7.698e-05,2]
[344014333,1733203833952,-150.0,7.698e-05,2]
[344014334,1733203833963,-150.0,7.698e-05,2]
[344014335,1733203833973,-150.0,7.698e-05,2]
[344014336,1733203833986,-150.0,7.698e-05,2]
[344014337,1733203833996,-150.0,7.698e-05,2]
[344014338,1733203834010,-944.649,7.698e-05,2]
[344014339,1733203834021,-200.0,7.698e-05,2]
[344014340,1733203834032,-2774.06609784,7.699e-05,2]
[344014341,1733203834042,-194.20435917,7.699e-05,2]
[344014342,1733203834052,-7189.95109924,7.699e-05,2]
[344014343,1733203834063,-18990.65450994,7.699e-05,2]
[344014344,1733203834075,-764.99,7.699e-05,2]
[344014345,1733203834085,-1758.79,7.699e-05,2]
[344014346,1733203834095,-15835.28,7.699e-05,2]
[344014347,1733203834105,-2003.0,7.7e-05,2]
[344014348,1733203834115,-150.0,7.7e-05,2]
[344014349,1733203834127,-630.0,7.7e-05,2]
[344014350,1733203834137,-1893.0,7.7e-05,2]
[344014351,1733203834147,-563.0,7.7e-05,2]
[344014352,1733203834157,-1252.0,7.7e-05,2]
[344014353,1733203834167,-3760.0,7.7e-05,2]
[344014354,1733203834178,-944.022,7.7e-05,2]
[344014355,1733203834188,-535.0,7.7e-05,2]
[344014356,1733203834198,-975.0,7.7e-05,2]
[344014357,1733203834209,-3528.0,7.7e-05,2]
[344014358,1733203834219,-1097.0,7.7e-05,2]
[344014359,1733203834229,-5962.0,7.7e-05,2]
[344014360,1733203834240,-1261.0,7.7e-05,2]
[344014361,1733203834250,-150.0,7.7e-05,2]
[344014362,1733203834265,-151.0,7.7e-05,2]
[344014363,1733203834274,-566.0,7.7e-05,2]
[344014364,1733203834282,-607.0,7.7e-05,2]
[344014365,1733203834290,-250.0,7.7e-05,2]
[344014366,1733203834299,-248.7,7.7e-05,2]
[344014367,1733203834305,-150.081,7.7e-05,2]
[344014368,1733203834313,-597601.61635589,7.7e-05,2]
[344014369,1733203834372,-17710.00000074,7.7e-05,2]
[344014370,1733203834384,-54139.49471999,7.7e-05,2]
[344014372,1733203838053,-2495.07221379,7.3e-05,2]
[344014373,1733203838063,-1166.0,7.7e-05,2]
[344014374,1733203838077,-32883.72118191,7.7e-05,2]
[344014375,1733203838116,-433.5,7.7e-05,2]
[344014376,1733203838127,-1076657.68643077,7.7e-05,2]
[344014377,1733203838137,-392380.62328811,7.7e-05,2]
[344014378,1733203838147,-39187.15971318,7.7e-05,2]
[344014379,1733203838156,-50231648.78678934,7.7e-05,2]
[344014380,1733203838186,-594.38369939,7.7e-05,2]
[344014381,1733203838487,-289.4002629,7.7e-05,2]
[344014382,1733203838965,284.54,6.943e-05,2]
[344014384,1733203840023,-398.6417848,7.7e-05,2]
[344014385,1733203840035,-456.55999978,7.7e-05,2]
[344014386,1733203840046,-37130.01635169,7.7e-05,2]
[344014387,1733203840103,-2260.0,7.7e-05,2]
[344014388,1733203840186,-57751.34957815,7.7e-05,2]
[344014401,1733203842963,-1939.34201611,7.699e-05,2]
[344014415,1733203843999,-834.72408173,7.699e-05,2]
[344014416,1733203844009,-83.94475927,7.7e-05,2]
[344014417,1733203844080,-3859.8,7.7e-05,2]
[344014418,1733203844131,-500.0,7.673e-05,2]
[344014419,1733203844140,-6108.04609495,7.7e-05,2]
[344014420,1733203844151,-844.81348278,7.7e-05,2]
[344014437,1733203846122,-494.98975,7.7e-05,2]
[344014438,1733203846206,-638.6122272,7.7e-05,2]
[344014439,1733203846218,-1678.7936858,7.7e-05,2]
[344014440,1733203846229,-2003.0,7.7e-05,2]
[344014441,1733203846238,-1823.8063142,7.7e-05,2]
[344014442,1733203846351,-25746.34105993,7.7e-05,2]
[344014447,1733204024103,250.0,7.024e-05,2]
[344014449,1733204104231,2752.0,7.123e-05,2]
[344014453,1733204649439,250.0,6.787e-05,2]
[344014454,1733204657090,2672.43969584,0.00023,120]
[344014461,1733205032469,-684.0,7.397e-05,2]
[344014462,1733205032480,-150.0,7.485e-05,2]
[344014463,1733205032490,-150.0,7.504e-05,2]
[344014464,1733205032499,-150.0,7.526e-05,2]
[344014465,1733205032508,-150.0,7.533e-05,2]
[344014466,1733205032518,-150.0,7.589e-05,2]
[344014467,1733205032527,-150.0,7.593e-05,2]
[344014468,1733205032536,-744.59745217,7.597e-05,2]
[344014469,1733205032545,-151.24057647,7.608e-05,2]
[344014470,1733205032555,-286.35197136,7.616e-05,2]
[344014472,1733205032567,-213.64802864,7.616e-05,2]
[344014474,1733205032576,-159.89519818,7.673e-05,2]
[344014475,1733205032587,-150.0,7.68e-05,2]
[344014476,1733205032596,-264.05544689,7.688e-05,2]
[344014477,1733205032606,-579.41412926,7.688e-05,2]
[344014482,1733205038487,-500.0,7.673e-05,2]
[344014483,1733205038497,-207.95676403,7.688e-05,2]
[344014484,1733205038507,-300.0,7.688e-05,2]
[344014485,1733205038517,-605.9356798,7.689e-05,2]
[344014486,1733205038527,-709.2385509,7.689e-05,2]
[344014487,1733205038536,-160.899063,7.69e-05,2]
[344014488,1733205038547,-755.719,7.695e-05,2]
[344014489,1733205038556,-541.4638388,7.695e-05,2]
[344014490,1733205038566,-476.9919978,7.695e-05,2]
[344014491,1733205038575,-412.5201569,7.695e-05,2]
[344014492,1733205038585,-634.511472,7.695e-05,2]
[344014493,1733205038597,-559.7843931,7.695e-05,2]
[344014494,1733205038607,-485.0573142,7.695e-05,2]
[344014495,1733205038616,-160.899063,7.695e-05,2]
[344014496,1733205038626,-160.899063,7.695e-05,2]
[344014497,1733205038635,-160.899063,7.695e-05,2]
[344014498,1733205038644,-150.0,7.698e-05,2]
[344014499,1733205038653,-150.0,7.698e-05,2]
[344014500,1733205038662,-150.0,7.698e-05,2]
[344014501,1733205038672,-150.0,7.698e-05,2]
[344014502,1733205038681,-150.0,7.698e-05,2]
[344014503,1733205038691,-150.0,7.698e-05,2]
[344014504,1733205038701,-150.0,7.698e-05,2]
[344014505,1733205038710,-150.0,7.698e-05,2]
[344014506,1733205038719,-258.95472245,7.698e-05,2]
[344014507,1733205038728,-150.0,7.698e-05,2]
[344014508,1733205038737,-637.49,7.699e-05,2]
[344014509,1733205038747,-23837.56323688,7.699e-05,2]
[344014510,1733205038756,-1003.0,7.699e-05,2]
[344014511,1733205038765,-1000.0,7.699e-05,3]
[344014512,1733205038777,-1685.51,7.699e-05,2]
[344014513,1733205038787,-520.0184374,7.699e-05,2]
[344014514,1733205038795,-1261.0,7.7e-05,2]
[344014515,1733205038804,-566.0,7.7e-05,2]
[344014516,1733205038815,-150.0,7.7e-05,2]
[344014517,1733205038824,-630.0,7.7e-05,2]
[344014518,1733205038833,-2003.0,7.7e-05,2]
[344014519,1733205038844,-563.0,7.7e-05,2]
[344014520,1733205038855,-1893.0,7.7e-05,2]
[344014521,1733205038865,-1252.0,7.7e-05,2]
[344014522,1733205038875,-3760.0,7.7e-05,2]
[344014523,1733205038885,-816.0,7.7e-05,2]
[344014524,1733205038895,-3528.0,7.7e-05,2]
[344014525,1733205038904,-535.0,7.7e-05,2]
[344014526,1733205038913,-975.0,7.7e-05,2]
[344014527,1733205038922,-150.0,7.7e-05,2]
[344014528,1733205038931,-5962.0,7.7e-05,2]
[344014529,1733205038941,-13709.0,7.7e-05,2]
[344014530,1733205038951,-150.0,7.7e-05,2]
[344014531,1733205038961,-1166.0,7.7e-05,2]
[344014532,1733205038971,-250.0,7.7e-05,2]
[344014533,1733205038980,-150.0,7.7e-05,2]
[344014534,1733205038990,-283.839,7.7e-05,2]
[344014535,1733205039000,-557.0,7.7e-05,2]
[344014536,1733205039010,-51665063.82384254,7.7e-05,2]
[344014540,1733205040399,-11277.47317576,7.7e-05,2]
[344014549,1733205043876,-16874.1,7.7e-05,2]
[344014550,1733205043902,-156838.90647128,7.7e-05,2]
[344014551,1733205043913,-22851.59554744,7.7e-05,2]
[344014552,1733205043928,-3626.76108272,7.7e-05,2]
[344014553,1733205044026,-1689.09858841,7.7e-05,2]
[344014555,1733205046173,-13747.2558,7.7e-05,2]
[344014556,1733205046185,-485.115,7.7e-05,2]
[344014557,1733205046246,-475.962625,7.7e-05,2]
[344014558,1733205046258,-2738.62054,7.7e-05,2]
[344014559,1733205046330,-1958.21645856,7.7e-05,2]
[344014560,1733205079856,7868.2,6.601e-05,2]
[344014561,1733205154754,1008.65,6.598e-05,2]
[344014563,1733205181948,1497.32,6.598e-05,2]
[344014564,1733205253466,250.0,6.6e-05,2]
[344014565,1733205284642,208.07,6.6e-05,2]
[344014568,1733205706311,173.52,6.594e-05,2]
[344014569,1733205798175,165.08,6.6e-05,2]
[344014571,1733205861517,250.0,6.6e-05,2]
[344014572,1733205880347,272.73,6.6e-05,2]
[344014573,1733205983333,305.54,6.599e-05,2]
[344014574,1733206015142,750.0,0.00023,120]
[344014576,1733206054136,49950.0,7e-05,3]
[344014577,1733206097241,1082.35,6.538e-05,2]
[344014595,1733206232478,-208.07,7.425e-05,2]
[344014596,1733206232487,-272.73,7.425e-05,2]
[344014597,1733206232497,-150.0,7.438e-05,2]
[344014598,1733206232506,-150.0,7.442e-05,2]
[344014599,1733206232516,-150.0,7.445e-05,2]
[344014600,1733206232525,-150.0,7.451e-05,2]
[344014601,1733206232535,-150.0,7.452e-05,2]
[344014602,1733206232544,-150.0,7.453e-05,2]
[344014603,1733206232556,-150.0,7.454e-05,2]
[344014604,1733206232566,-150.0,7.455e-05,2]
[344014605,1733206232575,-150.0,7.456e-05,2]
[344014606,1733206232584,-150.0,7.456e-05,2]
[344014607,1733206232594,-150.0,7.458e-05,2]
[344014608,1733206232603,-150.0,7.466e-05,2]
[344014609,1733206232613,-150.0,7.471e-05,2]
[344014610,1733206232622,-150.0,7.473e-05,2]
[344014611,1733206232632,-150.0,7.477e-05,2]
[344014612,1733206232642,-150.0,7.486e-05,2]
[344014613,1733206232651,-150.0,7.489e-05,2]
[344014614,1733206232661,-150.0,7.491e-05,2]
[344014615,1733206232671,-150.0,7.496e-05,2]
[344014616,1733206232681,-150.0,7.499e-05,2]
[344014617,1733206232691,-150.0,7.5e-05,2]
[344014618,1733206232700,-147593.84,7.5e-05,2]
[344014619,1733206232710,-150.0,7.501e-05,2]
[344014620,1733206232720,-150.0,7.505e-05,2]
[344014621,1733206232729,-150.0,7.509e-05,2]
[344014622,1733206232740,-150.0,7.509e-05,2]
[344014624,1733206232749,-150.0,7.514e-05,2]
[344014626,1733206232759,-150.0,7.514e-05,2]
[344014627,1733206232768,-150.0,7.516e-05,2]
[344014628,1733206232778,-150.0,7.517e-05,2]
[344014629,1733206232788,-150.0,7.522e-05,2]
[344014630,1733206232797,-150.0,7.527e-05,2]
[344014631,1733206232808,-150.0,7.531e-05,2]
[344014632,1733206232818,-150.0,7.531e-05,2]
[344014633,1733206232828,-150.0,7.531e-05,2]
[344014634,1733206232838,-150.0,7.533e-05,2]
[344014635,1733206232847,-150.0,7.534e-05,2]
[344014636,1733206232857,-150.0,7.534e-05,2]
[344014637,1733206232869,-150.0,7.542e-05,2]
[344014638,1733206232878,-150.0,7.544e-05,2]
[344014639,1733206232888,-150.0,7.55e-05,2]
[344014640,1733206232898,-150.0,7.557e-05,2]
[344014641,1733206232907,-24849.126,7.557e-05,2]